lending/lending_fUSD_20240731
["ID","MTS","AMOUNT","RATE_DAILY","PERIOD"]
[333704582,1722384264004,645.85695863,9e-05,2]
[333704593,1722384348994,243.53,8.219e-05,2]
[333704596,1722384456514,300.0,8.5e-05,2]
[333704624,1722384631431,-500.0,9.068e-05,2]
[333704625,1722384631441,-878.29577402,9.078e-05,2]
[333704626,1722384631453,-277.50880542,9.078e-05,2]
[333704627,1722384631484,-251.02542056,9.078e-05,2]
[333704628,1722384631494,-900.96,9.103e-05,2]
[333704629,1722384631503,-200.0,9.106e-05,2]
[333704630,1722384631512,-609.18,9.113e-05,2]
[333704631,1722384631522,-250.0,9.117e-05,2]
[333704632,1722384631532,-192.48,9.117e-05,2]
[333704633,1722384631542,-23890.0,9.132e-05,2]
[333704634,1722384631552,-478.05,9.139e-05,2]
[333704635,1722384631561,-558.14,9.181e-05,2]
[333704636,1722384631571,-173.07,9.227e-05,2]
[333704637,1722384631580,-336.42,9.263e-05,2]
[333704638,1722384631590,-521.95,9.417e-05,2]
[333704639,1722384631599,-179.33,9.624e-05,2]
[333704640,1722384631608,-150.0,9.669e-05,2]
[333704641,1722384631618,-999.99,9.67e-05,2]
[333704642,1722384631627,-2348.02,9.67e-05,2]
[333704643,1722384631636,-1047.14,9.818e-05,2]
[333704644,1722384631645,-6819.7,9.818e-05,2]
[333704645,1722384631654,-1047.14,9.82e-05,2]
[333704646,1722384631663,-1047.14,9.823e-05,2]
[333704647,1722384631673,-1047.14,9.825e-05,2]
[333704648,1722384631693,-1047.14,9.828e-05,2]
[333704649,1722384631703,-1047.14,9.83e-05,2]
[333704650,1722384631713,-1047.14,9.833e-05,2]
[333704651,1722384631725,-1047.14,9.836e-05,2]
[333704652,1722384631735,-1047.14,9.838e-05,2]
[333704653,1722384631744,-1047.14,9.841e-05,2]
[333704654,1722384631753,-1047.14,9.843e-05,2]
[333704656,1722384631762,-1047.14,9.846e-05,2]
[333704658,1722384631772,-1047.14,9.848e-05,2]
[333704660,1722384631781,-1047.14,9.851e-05,2]
[333704661,1722384631791,-1047.14,9.854e-05,2]
[333704662,1722384631800,-1047.14,9.856e-05,2]
[333704663,1722384631809,-1047.14,9.859e-05,2]
[333704664,1722384631818,-1047.14,9.861e-05,2]
[333704665,1722384631829,-1047.14,9.864e-05,2]
[333704666,1722384631838,-1047.14,9.866e-05,2]
[333704667,1722384631847,-34316.62286026,9.874e-05,2]
[333704668,1722384631857,-150.0,9.888e-05,2]
[333704669,1722384631867,-400.0,9.9e-05,3]
[333704670,1722384631876,-1250.0,0.0001,2]
[333704671,1722384631886,-900.0,0.0001,3]
[333704672,1722384631895,-834.15,0.00010027,2]
[333704673,1722384631904,-420.42,0.00010027,2]
[333704674,1722384631914,-834.15,0.00010027,2]
[333704675,1722384631923,-420.42,0.00010027,2]
[333704676,1722384631940,-419.49,0.00010027,2]
[333704677,1722384631952,-834.15,0.00010027,2]
[333704678,1722384631963,-263.59,0.00010027,2]
[333704679,1722384631973,-1300.0,0.000101,3]
[333704680,1722384631984,-529.84,0.00010164,2]
[333704681,1722384631994,-1800.0,0.000102,3]
[333704682,1722384632004,-478.05,0.00010281,2]
[333704683,1722384632013,-2200.0,0.000103,3]
[333704684,1722384632023,-301.95646493,0.00010303,2]
[333704685,1722384632032,-1256.19339315,0.00010303,2]
[333704686,1722384632044,-400.0,0.000104,3]
[333704687,1722384632053,-243.53,0.00010425,2]
[333704688,1722384632063,-400.0,0.000105,3]
[333704689,1722384632072,-996.0809,0.0001058,2]
[333704690,1722384632082,-521.95,0.00010594,2]
[333704691,1722384632092,-400.0,0.000106,3]
[333704692,1722384632101,-255.0,0.00010635,2]
[333704693,1722384632110,-3507.861,0.00010655,2]
[333704694,1722384632120,-1000.0,0.0001067,2]
[333704695,1722384632129,-29814.6576,0.0001067,2]
[333704696,1722384632139,-400.0,0.000107,3]
[333704697,1722384632148,-1500.0,0.0001076,2]
[333704698,1722384632157,-5831.0,0.0001076,2]
[333704699,1722384632167,-37515.965,0.0001076,2]
[333704700,1722384632176,-674.967,0.0001076,2]
[333704701,1722384632190,-5120.0,0.0001076,2]
[333704702,1722384632199,-1668.0,0.0001076,2]
[333704703,1722384632208,-1074.0,0.0001076,2]
[333704704,1722384632217,-1500.0,0.00010768,2]
[333704705,1722384632226,-1000.0,0.000108,2]
[333704706,1722384632235,-800.0,0.000108,3]
[333704707,1722384632245,-988.4685,0.0001089,2]
[333704708,1722384632254,-3000.0,0.0001089,2]
[333704709,1722384632263,-3080.94104871,0.00010899,2]
[333704710,1722384632272,-3080.94104868,0.00010899,2]
[333704711,1722384632282,-3080.94104868,0.00010899,2]
[333704712,1722384632291,-3080.94104868,0.00010899,2]
[333704713,1722384632300,-3080.94104868,0.00010899,2]
[333704714,1722384632309,-3080.94104868,0.00010899,2]
[333704715,1722384632318,-3080.94104868,0.00010899,2]
[333704716,1722384632328,-3080.94104868,0.00010899,2]
[333704717,1722384632337,-3080.94104868,0.00010899,2]
[333704718,1722384632346,-4183.5513,0.000109,2]
[333704719,1722384632355,-14993.7331,0.000109,2]
[333704720,1722384632364,-110077.03560925,0.000109,2]
[333704721,1722384632377,-1577.90951174,0.000109,2]
[333704722,1722384632393,-1517.42729465,0.000109,2]
[333704723,1722384632404,-421.55839924,0.000109,2]
[333704724,1722384632422,-3494.76952503,0.000109,2]
[333704725,1722384632438,-351.96,0.000109,2]
[333704726,1722384632450,-1004.69421276,0.000109,2]
[333704727,1722384632462,-425.13616589,0.000109,2]
[333704728,1722384632481,-1682.825,0.000109,2]
[333704729,1722384632492,-19207.54554323,0.000109,2]
[333704730,1722384632503,-1230.78807392,0.000109,2]
[333704731,1722384632514,-97842.64386429,0.000109,2]
[333704732,1722384632524,-166.339282,0.000109,2]
[333704733,1722384632534,-3080.94104868,0.000109,2]
[333704734,1722384632544,-318.25602759,0.000109,2]
[333704735,1722384632554,-318.25602753,0.000109,2]
[333704736,1722384632564,-318.25602753,0.000109,2]
[333704737,1722384632574,-318.25602753,0.000109,2]
[333704738,1722384632584,-318.25602753,0.000109,2]
[333704739,1722384632594,-162.30891768,0.000109,2]
[333704740,1722384632604,-318.25602753,0.000109,2]
[333704741,1722384632614,-318.25602753,0.000109,2]
[333704742,1722384632623,-318.25602753,0.000109,2]
[333704743,1722384632633,-318.25602753,0.000109,2]
[333704744,1722384632642,-459.91512642,0.000109,2]
[333704745,1722384632652,-318.25602753,0.000109,2]
[333704746,1722384632662,-318.25602753,0.000109,2]
[333704747,1722384632671,-318.25602753,0.000109,2]
[333704748,1722384632686,-318.25602753,0.000109,2]
[333704749,1722384632696,-318.25602753,0.000109,2]
[333704750,1722384632705,-318.25602753,0.000109,2]
[333704751,1722384632715,-318.25602753,0.000109,2]
[333704752,1722384632724,-318.25602753,0.000109,2]
[333704753,1722384632734,-318.25602753,0.000109,2]
[333704754,1722384632744,-318.25602753,0.000109,2]
[333704755,1722384632754,-318.25602753,0.000109,2]
[333704756,1722384632763,-1503.43655773,0.00010914,2]
[333704757,1722384632773,-221.64,0.00010959,2]
[333704758,1722384632782,-184.7,0.00010959,2]
[333704759,1722384632792,-153.92,0.00010959,2]
[333704760,1722384632801,-769.62,0.00010959,2]
[333704761,1722384632811,-1500.0,0.00010969,2]
[333704762,1722384632820,-1500.0,0.00010973,2]
[333704763,1722384632829,-1500.0,0.00010984,2]
[333704764,1722384632839,-874.5841661,0.00010997,2]
[333704765,1722384632849,-2456.9972497,0.00010998,2]
[333704766,1722384632979,-1666.6180191,0.00010998,2]
[333704767,1722384632989,-4965.3477052,0.00010998,2]
[333704768,1722384633000,-290.68469615,0.00010999,2]
[333704769,1722384633010,-392191.69619755,0.00011,2]
[333704770,1722384633022,-939.82724979,0.00011,2]
[333704771,1722384633047,-552.98113672,0.00011,2]
[333704772,1722384633060,-1075.9549519,0.00011,2]
[333704780,1722384637478,-1420.438834,9.022e-05,2]
[333704781,1722384637493,-193.78979743,0.00010999,2]
[333704782,1722384637507,-585.80487783,0.00011,2]
[333704783,1722384637527,-3022.71915924,0.00011,2]
[333704784,1722384637545,-384.352,0.00011,2]
[333704785,1722384637562,-325.82,0.00011,2]
[333704786,1722384637580,-581.28166648,0.00011,2]
[333704787,1722384637596,-370.27272899,0.00011,2]
[333704788,1722384637615,-1692.27854966,0.00011,2]
[333704789,1722384637639,-561.82928208,0.00011,2]
[333704790,1722384637657,-744.74833634,0.00011,2]
[333704791,1722384637674,-664.3,0.00011,2]
[333704792,1722384637693,-423.10202108,0.00011,2]
[333704793,1722384637739,-8400.0,0.00011,2]
[333704794,1722384637756,-457.8345374,0.00011,2]
[333704795,1722384637774,-43272.09208816,0.00011,2]
[333704796,1722384637791,-617.7597896,0.00011,2]
[333704797,1722384637809,-10588.22166787,0.00011,2]
[333704798,1722384637827,-34521.336,0.00011,2]
[333704802,1722384637927,-351.92,0.00011,2]
[333704939,1722384639526,-347.80531619,0.00011,2]
[333704961,1722384639683,-1677.4,0.00011,2]
[333704966,1722384639765,-3755.125,0.00011,2]
[333704968,1722384639777,-9920.5,0.00011,2]
[333704970,1722384639787,-342.86858571,0.00011,2]
[333704974,1722384639813,-124115.8547563,0.00011,2]
[333704976,1722384639823,-7988.76758883,0.00011,2]
[333704978,1722384639834,-865.43927189,0.00011,2]
[333704980,1722384639845,-583.5699975,0.00011,2]
[333704983,1722384639867,-533.1,0.00011,2]
[333704987,1722384639895,-91799.23822227,0.00011,2]
[333704990,1722384639906,-271.26559914,0.00011,2]
[333704992,1722384639916,-314.65,0.00011,2]
[333704995,1722384639935,-3812.46253125,0.00011,2]
[333704997,1722384639953,-3200.6762738,0.00011,2]
[333704999,1722384639965,-122523.72248395,0.00011,2]
[333705001,1722384639976,-266486.15284758,0.00011,2]
[333705003,1722384639985,-1000.0,0.00011,2]
[333705005,1722384639994,-1000.0,0.00011,2]
[333705007,1722384640003,-1659873.32784468,0.00011,2]
[333705011,1722384640015,-256.89893274,0.00011,2]
[333705014,1722384640026,-63502.53377146,0.00011,2]
[333705017,1722384640037,-3048.32772882,0.00011,2]
[333705020,1722384640048,-670.7,0.00011,2]
[333705194,1722384642418,-12833.01169762,0.00011,2]
[333705195,1722384642430,-4334.4188288,0.00011,2]
[333705196,1722384642444,-49269.39928526,0.00011,2]
[333705197,1722384642634,-5557.37127244,0.00011,2]
[333705198,1722384642648,-330.41118554,0.00011,2]
[333705199,1722384642692,-301.88553806,0.00011,2]
[333705218,1722384645462,-3009.87408757,0.00011,2]
[333705219,1722384645517,-7235.94988159,0.00011,2]
[333705220,1722384645528,-3278.829,0.00011,2]
[333705247,1722384828910,280.91,8.449e-05,2]
[333705249,1722385299012,1350.0,8e-05,10]
[333705250,1722385359749,266.86,8.219e-05,2]
[333705251,1722385462510,1593.8,0.00027,120]
[333705277,1722385829065,253.51,8.219e-05,2]
[333705298,1722385832423,-500.0,9.369e-05,2]
[333705299,1722385832435,-250.0,9.373e-05,2]
[333705300,1722385832444,-713.17,9.405e-05,2]
[333705301,1722385832456,-1490.74234959,9.405e-05,2]
[333705302,1722385832480,-3025.514,9.405e-05,2]
[333705303,1722385832491,-447.43112164,9.405e-05,2]
[333705304,1722385832501,-245.26517002,9.416e-05,2]
[333705305,1722385832511,-97.73482998,9.416e-05,2]
[333705306,1722385832520,-23870.0,9.417e-05,2]
[333705307,1722385832530,-200.0,9.448e-05,2]
[333705308,1722385832539,-23140.76,9.51e-05,2]
[333705309,1722385832548,-1616.77,9.559e-05,2]
[333705310,1722385832557,-286.83,9.604e-05,2]
[333705311,1722385832566,-174.58,9.611e-05,2]
[333705312,1722385832575,-324.12,9.67e-05,2]
[333705313,1722385832584,-499.99,9.67e-05,2]
[333705314,1722385832594,-150.99,9.697e-05,2]
[333705315,1722385832603,-321.5,9.697e-05,2]
[333705316,1722385832612,-150.0,9.705e-05,2]
[333705317,1722385832621,-12852.9,9.706e-05,2]
[333705318,1722385832632,-299.99,9.706e-05,2]
[333705319,1722385832642,-5818.21,9.707e-05,2]
[333705320,1722385832654,-150.0,9.888e-05,2]
[333705321,1722385832663,-204.18166783,0.0001,2]
[333705322,1722385832674,-2449.25,0.0001024,2]
[333705323,1722385832683,-453.73874399,0.00010241,2]
[333705324,1722385832692,-1256.19339315,0.00010241,2]
[333705325,1722385832701,-190.15,0.00010241,2]
[333705326,1722385832710,-414.35884819,0.00010241,2]
[333705327,1722385832720,-4402.49836312,0.00010241,2]
[333705329,1722385832731,-654.12,0.00010355,2]
[333705331,1722385832740,-654.12,0.00010358,2]
[333705332,1722385832749,-654.12,0.00010361,2]
[333705333,1722385832759,-654.12,0.00010364,2]
[333705334,1722385832769,-654.12,0.00010366,2]
[333705335,1722385832778,-654.12,0.00010369,2]
[333705336,1722385832787,-654.12,0.00010372,2]
[333705337,1722385832798,-654.12,0.00010374,2]
[333705338,1722385832808,-654.12,0.00010377,2]
[333705339,1722385832818,-654.12,0.0001038,2]
[333705340,1722385832829,-654.12,0.00010383,2]
[333705341,1722385832838,-654.12,0.00010385,2]
[333705342,1722385832848,-654.12,0.00010388,2]
[333705343,1722385832857,-654.12,0.00010391,2]
[333705344,1722385832866,-654.12,0.00010393,2]
[333705345,1722385832875,-654.12,0.00010396,2]
[333705346,1722385832884,-654.12,0.00010399,2]
[333705347,1722385832893,-654.12,0.00010402,2]
[333705348,1722385832903,-654.12,0.00010404,2]
[333705349,1722385832912,-654.12,0.00010407,2]
[333705350,1722385832925,-253.51,0.0001044,2]
[333705351,1722385832934,-19999.99,0.00010475,2]
[333705352,1722385832944,-29999.99,0.00010475,2]
[333705353,1722385832955,-13155.77,0.00010475,2]
[333705354,1722385832964,-713.17,0.0001058,2]
[333705355,1722385832973,-286.83,0.00010804,2]
[333705356,1722385832982,-15101.25650702,0.0001088,2]
[333705357,1722385832991,-173.05830402,0.000109,2]
[333705358,1722385833001,-3000.0,0.000109,2]
[333705359,1722385833009,-4907.08272959,0.000109,2]
[333705360,1722385833019,-4907.08272955,0.000109,2]
[333705361,1722385833029,-4907.08272955,0.000109,2]
[333705362,1722385833038,-4907.08272955,0.000109,2]
[333705363,1722385833048,-4907.08272955,0.000109,2]
[333705364,1722385833058,-4907.08272955,0.000109,2]
[333705365,1722385833067,-4907.08272955,0.000109,2]
[333705366,1722385833077,-4907.08272955,0.000109,2]
[333705367,1722385833087,-500.0,0.00010911,2]
[333705368,1722385833096,-500.0,0.00010912,2]
[333705369,1722385833106,-500.0,0.00010912,2]
[333705370,1722385833115,-24332.74716632,0.00010932,2]
[333705371,1722385833125,-445.0,0.0001096,2]
[333705372,1722385833134,-811.0,0.0001096,2]
[333705373,1722385833143,-2384.0,0.0001096,2]
[333705374,1722385833152,-450.0,0.0001096,2]
[333705375,1722385833162,-150.0,0.0001096,2]
[333705376,1722385833172,-150.0,0.0001096,2]
[333705377,1722385833181,-550.0,0.0001096,2]
[333705378,1722385833192,-2024.278,0.0001096,2]
[333705379,1722385833201,-3285.0,0.0001096,2]
[333705380,1722385833211,-621.0,0.0001096,2]
[333705381,1722385833220,-255507.69401232,0.00010989,2]
[333705382,1722385833260,-4464.6722884,0.00010989,2]
[333705383,1722385833271,-264.63989011,0.00010989,2]
[333705384,1722385833282,-599.46000008,0.00010989,2]
[333705385,1722385833306,-408.81815548,0.00010989,2]
[333705386,1722385833318,-2474.25724191,0.00010989,2]
[333705387,1722385833333,-692.42243522,0.00010989,2]
[333705392,1722385837584,-1241.67838036,0.0001096,2]
[333705395,1722385837643,-13.32161964,0.0001096,2]
[333705396,1722385837652,-4302.3309061,0.00010989,2]
[333705397,1722385837663,-6178.35106938,0.00010989,2]
[333705398,1722385837810,-2510.72,0.00010989,2]
[333705399,1722385837821,-7543.16,0.00010989,2]
[333705400,1722385837867,-16000.0000002,0.00010989,2]
[333705590,1722385839741,-2173.14091211,0.00010989,2]
[333705592,1722385839755,-1897.89860874,0.00010989,2]
[333705594,1722385839768,-5298.39830591,0.00010989,2]
[333705596,1722385839777,-565.55169409,0.00010997,2]
[333705610,1722385839912,-14.80458772,0.00010997,2]
[333705612,1722385839922,-2328.93275775,0.00010997,2]
[333705614,1722385839934,-1147.51503613,0.00010997,2]
[333705626,1722385840036,-1166.4024606,0.00010997,2]
[333705628,1722385840046,-527.282366,0.00010998,2]
[333705630,1722385840056,-786.1107363,0.00010998,2]
[333705632,1722385840065,-1195.8528135,0.00010998,2]
[333705634,1722385840075,-284.2241041,0.00010998,2]
[333705636,1722385840084,-1395.8799023,0.00010998,2]
[333705638,1722385840094,-7702.41808215,0.00010998,2]
[333705641,1722385840120,-10206.6201387,0.00010998,2]
[333705643,1722385840131,-1150.13521245,0.00010998,2]
[333705645,1722385840141,-6795.7547885,0.00010998,2]
[333705647,1722385840151,-2124.6574395,0.00010998,2]
[333705649,1722385840160,-150.01,0.00010999,2]
[333705651,1722385840169,-185793.9197722,0.00011,2]
[333705653,1722385840180,-1134.1532255,0.00011,2]
[333705655,1722385840190,-45016.89131152,0.00011,2]
[333705657,1722385840202,-530.5507641,0.00011,2]
[333705886,1722385842707,-296.13443335,0.0001096,2]
[333705893,1722385842765,-1240.38172753,0.0001096,2]
[333705906,1722385842883,-44.48383912,0.0001096,2]
[333705908,1722385842892,-8994.39616092,0.00011,2]
[333705914,1722385842938,-674.54400006,0.00011,2]
[333705921,1722385842995,-83974.38420016,0.00011,2]
[333705923,1722385843006,-394.58101345,0.00011,2]
[333705929,1722385843054,-1308.00000413,0.00011,2]
[333706182,1722385845665,-1925.0,0.0001096,2]
[333706184,1722385845675,-2092.62324958,0.00011,2]
[333706186,1722385845688,-28444.310442,0.00011,2]
[333706191,1722385845726,-13681.4,0.00011,2]
[333706192,1722385845737,-12650.3484,0.00011,2]
[333706193,1722385845843,-146995.53725887,0.00011,2]
[333706194,1722385845855,-9396.84872796,0.00011,2]
[333706195,1722385845866,-15741.80963135,0.00011,2]
[333706196,1722385845878,-20856.15534676,0.00011,2]
[333706197,1722385845890,-500.0,0.00011,2]
[333706198,1722385845914,-6550.4,0.00011,2]
[333706199,1722385845925,-3308.4,0.00011,2]
[333706202,1722385845944,-3777.54621789,0.00011,2]
[333706206,1722385845977,-1716.90195,0.00011,2]
[333706208,1722385845989,-477.47355398,0.00011,2]
[333706210,1722385846001,-655.77536007,0.00011,2]
[333706215,1722385846044,-573.43013765,0.00011,2]
[333706217,1722385846055,-3711.53114608,0.00011,2]
[333706266,1722386284191,269.51,8.219e-05,2]
[333706269,1722386782066,256.03,8.219e-05,2]
[333706295,1722387031806,-250.0,9.644e-05,2]
[333706296,1722387031816,-231.07,9.644e-05,2]
[333706297,1722387031825,-922.67,9.665e-05,2]
[333706298,1722387031835,-167.26,9.688e-05,2]
[333706299,1722387031844,-300.0,9.688e-05,2]
[333706300,1722387031854,-6333.41474252,9.689e-05,2]
[333706301,1722387031865,-1031.62934149,9.689e-05,2]
[333706302,1722387031885,-16524.95591599,9.689e-05,2]
[333706303,1722387031894,-427.91,9.738e-05,2]
[333706304,1722387031903,-150.0,9.888e-05,2]
[333706305,1722387031912,-19680.32961465,9.962e-05,2]
[333706306,1722387031922,-500.0,9.962e-05,2]
[333706307,1722387031931,-1250.0,0.0001,2]
[333706308,1722387031940,-572.09,0.00010155,2]
[333706309,1722387031950,-150.99,0.00010155,2]
[333706310,1722387031959,-1201.76,0.00010273,2]
[333706311,1722387031969,-150.0,0.00010273,2]
[333706312,1722387031978,-9800.0114,0.00010274,2]
[333706313,1722387031987,-207.8,0.00010291,2]
[333706314,1722387031997,-599.07,0.00010291,2]
[333706315,1722387032006,-972.63,0.00010341,2]
[333706316,1722387032015,-679.66331283,0.00010365,2]
[333706317,1722387032025,-10695.7085,0.00010375,2]
[333706318,1722387032034,-499.99,0.00010375,2]
[333706319,1722387032043,-256.03,0.00010459,2]
[333706320,1722387032052,-2640.11,0.00010475,2]
[333706321,1722387032062,-150.0,0.00010478,2]
[333706322,1722387032072,-530.23,0.00010478,2]
[333706323,1722387032081,-530.23,0.00010478,2]
[333706324,1722387032090,-530.23,0.00010478,2]
[333706325,1722387032100,-530.23,0.00010478,2]
[333706326,1722387032109,-523.75,0.00010478,2]
[333706327,1722387032119,-173.97,0.00010482,2]
[333706328,1722387032128,-420.0,0.00010656,2]
[333706329,1722387032137,-3761.0858,0.00010698,2]
[333706330,1722387032146,-21022.1544,0.0001079,2]
[333706331,1722387032156,-3064.7533,0.0001079,2]
[333706332,1722387032165,-1000.0,0.0001079,2]
[333706333,1722387032174,-2500.0,0.0001079,2]
[333706334,1722387032184,-27252.09094438,0.00010798,2]
[333706335,1722387032199,-6801.78035562,0.00010798,2]
[333706336,1722387032209,-16187.796,0.00010798,2]
[333706337,1722387032218,-4894.1722,0.000108,2]
[333706338,1722387032227,-829.1683,0.000108,2]
[333706339,1722387032238,-1000.0,0.000108,2]
[333706340,1722387032247,-3000.0,0.0001089,2]
[333706341,1722387032257,-271.78519659,0.00010899,2]
[333706342,1722387032267,-271.78519658,0.00010899,2]
[333706343,1722387032276,-271.78519658,0.00010899,2]
[333706344,1722387032286,-271.78519658,0.00010899,2]
[333706345,1722387032296,-271.78519658,0.00010899,2]
[333706346,1722387032305,-271.78519658,0.00010899,2]
[333706347,1722387032314,-271.78519658,0.00010899,2]
[333706348,1722387032324,-271.78519658,0.00010899,2]
[333706349,1722387032333,-271.78519658,0.00010899,2]
[333706350,1722387032343,-5103.84395886,0.000109,2]
[333706351,1722387032354,-5537.47714114,0.000109,2]
[333706352,1722387032363,-271.78519658,0.000109,2]
[333706353,1722387032373,-827.71330744,0.000109,2]
[333706354,1722387032382,-1200.0,0.000109,2]
[333706356,1722387032391,-2339.09855031,0.000109,2]
[333706358,1722387032401,-1262.11625528,0.000109,2]
[333706360,1722387032410,-324.61783536,0.000109,2]
[333706361,1722387032420,-291.7842,0.00010945,2]
[333706364,1722387032429,-1000.0,0.00010945,2]
[333706365,1722387032438,-1000.0,0.00010945,2]
[333706367,1722387032448,-1000.0,0.00010945,2]
[333706369,1722387032460,-1000.0,0.00010945,2]
[333706371,1722387032469,-598.4064,0.00010945,2]
[333706373,1722387032479,-427.91,0.00010955,2]
[333706375,1722387032489,-212.8129,0.00010959,2]
[333706377,1722387032500,-150.0,0.00010959,2]
[333706380,1722387032511,-250.0,0.00010959,2]
[333706381,1722387032520,-783.76,0.00010959,2]
[333706383,1722387032529,-1925.0,0.0001096,2]
[333706385,1722387032538,-1581.0,0.0001096,2]
[333706387,1722387032547,-1255.0,0.0001096,2]
[333706389,1722387032555,-2384.0,0.0001096,2]
[333706391,1722387032565,-550.0,0.0001096,2]
[333706392,1722387032574,-1996.0,0.0001096,2]
[333706394,1722387032583,-3285.0,0.0001096,2]
[333706396,1722387032592,-5823.0,0.0001096,2]
[333706398,1722387032602,-1202.0,0.0001096,2]
[333706400,1722387032611,-5121.0,0.0001096,2]
[333706402,1722387032620,-14592.876,0.0001096,2]
[333706404,1722387032629,-1669.0,0.0001096,2]
[333706406,1722387032638,-22616.331032,0.00010998,2]
[333706408,1722387032647,-1755.9167702,0.00010998,2]
[333706410,1722387032656,-3767.1958606,0.00010998,2]
[333706412,1722387032665,-3841.9206739,0.00010998,2]
[333706414,1722387032675,-237.56959487,0.00010999,2]
[333706416,1722387032684,-223.35023249,0.00010999,2]
[333706418,1722387032693,-1766628.04173942,0.00011,2]
[333706421,1722387032716,-448.08687165,0.00011,2]
[333706423,1722387032728,-5684.59124498,0.00011,2]
[333706424,1722387032739,-3909.26609286,0.00011,2]
[333706425,1722387032755,-556.26670477,0.00011,2]
[333706426,1722387032766,-857.30470671,0.00011,2]
[333706427,1722387032777,-5032.82372709,0.00011,2]
[333706431,1722387037871,-802.7266068,0.00011,2]
[333706432,1722387037934,-866.45284795,0.0001096,2]
[333706433,1722387037998,-207.54715205,0.0001096,2]
[333706434,1722387038009,-907.90846276,0.00011,2]
[333706481,1722387040195,-3522.1387671,0.00011,2]
[333706637,1722387042871,-1014.6249167,0.00011,2]
[333706638,1722387042930,-1619.88021858,0.00011,2]
[333706639,1722387042941,-10750.945965,0.00011,2]
[333706640,1722387042952,-794.19253862,0.00011,2]
[333706641,1722387042963,-26821.11545556,0.00011,2]
[333706642,1722387042975,-1098.75051472,0.00011,2]
[333706643,1722387042987,-1016.1,0.00011,2]
[333706644,1722387042998,-90997.05638331,0.00011,2]
[333706645,1722387043007,-8836.31169032,0.00011,2]
[333706646,1722387043019,-300.08603421,0.00011,2]
[333706647,1722387043030,-1446.5731672,0.00011,2]
[333706651,1722387043050,-6368.82728371,0.00011,2]
[333706652,1722387043062,-783.75520737,0.00011,2]
[333706653,1722387043072,-405.5664405,0.00011,2]
[333706654,1722387043087,-1388.89874563,0.00011,2]
[333706655,1722387043114,-2786.62573317,0.00011,2]
[333706656,1722387043125,-4202.89669979,0.00011,2]
[333706657,1722387043170,-1331.27866243,0.00011,2]
[333706658,1722387043182,-680.3546727,0.00011,2]
[333706659,1722387043193,-764.825,0.00011,2]
[333706662,1722387046117,-446.60266317,0.000109,2]
[333706663,1722387046127,-289.84282049,0.00011,2]
[333706664,1722387046139,-2378.68054627,0.00011,2]
[333706665,1722387046176,-55374.64466171,0.00011,2]
[333706666,1722387046349,-359.31747,0.00011,2]
[333706667,1722387046466,-1790.43895659,0.00011,2]
[333706672,1722387378761,270.47,8.318e-05,2]
[333706673,1722387491278,250.0,8.318e-05,2]
[333706674,1722387845604,256.94,8.219e-05,2]
[333706675,1722387994295,1000.0,0.00027,120]
[333706700,1722388232080,-348.79,0.0001,2]
[333706701,1722388232147,-337.53974074,0.0001,2]
[333706702,1722388232161,-563.67025926,0.0001,2]
[333706703,1722388232170,-743.25,0.00010046,2]
[333706704,1722388232180,-250.0,0.00010095,2]
[333706705,1722388232192,-1893.61,0.00010107,2]
[333706706,1722388232204,-256.75,0.00010199,2]
[333706707,1722388232215,-173.51,0.00010209,2]
[333706708,1722388232224,-225.56,0.00010219,2]
[333706709,1722388232235,-256.94,0.00010482,2]
[333706710,1722388232244,-300.0,0.00010499,2]
[333706711,1722388232253,-300.0,0.00010499,2]
[333706712,1722388232263,-24582.35779797,0.000105,2]